Body,Body Name,Date,TransNo,Amount � (Excl VAT),Supplier name,Description,Expense Area,Expense Type,Expense Code,
http://opendatacommunities.org/id/london-borough-council/sutton,London Borough of Sutton,11/12/2019,1288531,8.32 , AMZNMKTPLACE,TOYS/EQUIPMENT,Peoples Services Directorate,Education Equipment,F009,
http://opendatacommunities.org/id/london-borough-council/sutton,London Borough of Sutton,10/12/2019,1288531,64.65 , W M MORRISONS.COM,GROCERY SHOP,Peoples Services Directorate,Provisions - General,F150,
http://opendatacommunities.org/id/london-borough-council/sutton,London Borough of Sutton,02/12/2019,1288531,41.80 , SAINSBURYS 2006,GROCERY SHOP,Peoples Services Directorate,Refreshments,F155,
http://opendatacommunities.org/id/london-borough-council/sutton,London Borough of Sutton,26/11/2019,1288531,69.65 , W M MORRISONS.COM,GROCERIES,Peoples Services Directorate,Refreshments,F155,
http://opendatacommunities.org/id/london-borough-council/sutton,London Borough of Sutton,17/12/2019,1288531,9.20 , SAINSBURYS 2331,GROCERY SHOP,Peoples Services Directorate,Residents/Clients Clothing,F182,
http://opendatacommunities.org/id/london-borough-council/sutton,London Borough of Sutton,29/11/2019,1288531,384.00 , SURVEYMONKEY,384 F450 0044 9999 - ANNUAL SUBSCRIPTION SURVEY MONKEY IYS,Peoples Services Directorate,Subscriptions - General,F450,
http://opendatacommunities.org/id/london-borough-council/sutton,London Borough of Sutton,20/12/2019,1288531,80.00 , WWW.SIGNATURE.ORG.UK,TRAINING,Peoples Services Directorate,Training - Course Fees,A520,
http://opendatacommunities.org/id/london-borough-council/sutton,London Borough of Sutton,19/12/2019,1288531,20.00 , OYSTER AUTO-TOP UP,OYSTER CARD TOP UP,Peoples Services Directorate,Staff Travelling Expenses,E130,
http://opendatacommunities.org/id/london-borough-council/sutton,London Borough of Sutton,18/12/2019,1288531,40.00 , OYSTER AUTO-TOP UP,OYSTER CARD TOP UP,Peoples Services Directorate,Staff Travelling Expenses,E130,
http://opendatacommunities.org/id/london-borough-council/sutton,London Borough of Sutton,04/12/2019,1288531,20.00 , OYSTER AUTO-TOP UP,OYSTER AUTO TOP UP,Peoples Services Directorate,Staff Travelling Expenses,E130,
http://opendatacommunities.org/id/london-borough-council/sutton,London Borough of Sutton,02/12/2019,1288531,40.00 , OYSTER AUTO-TOP UP,TOP UP OYSTER CARD,Peoples Services Directorate,Staff Travelling Expenses,E130,
http://opendatacommunities.org/id/london-borough-council/sutton,London Borough of Sutton,29/11/2019,1288531,12.50 , LOYD 49-53 HIGH ST,CASH FOR PETTY CASH ACCOUNT,Peoples Services Directorate,Personal Requisites,F106,
http://opendatacommunities.org/id/london-borough-council/sutton,London Borough of Sutton,28/11/2019,1288531,500.00 , LOYD 49-53 HIGH ST,CASH FOR PETTY CASH ACCOUNT,Peoples Services Directorate,Personal Requisites,F106,
http://opendatacommunities.org/id/london-borough-council/sutton,London Borough of Sutton,19/12/2019,1288531,336.00 , SIGNATURE,EXAM FEES,Peoples Services Directorate,Fees - Exams,F285,
http://opendatacommunities.org/id/london-borough-council/sutton,London Borough of Sutton,23/12/2019,1288531,118.00 , CBT NUGGETS LLC,SPLIT - IT_PREMIUM (129.06%),Peoples Services Directorate,Training - Course Fees,A520,
http://opendatacommunities.org/id/london-borough-council/sutton,London Borough of Sutton,23/12/2019,1288531,(26.57), CBT NUGGETS LLC,BALANCING ENTRY AMOUNT (-87.18%),Peoples Services Directorate,Training - Course Fees,A520,
http://opendatacommunities.org/id/london-borough-council/sutton,London Borough of Sutton,27/12/2019,1288531,2.51 , LOYD 49-53 HIGH ST,MONTHLY TRAINING,Peoples Services Directorate,Training - Course Fees,A520,
http://opendatacommunities.org/id/london-borough-council/sutton,London Borough of Sutton,05/12/2019,1288531,570.00 , REDWAY NETWORKS LTD,10 MONITORS AND CABLES,Peoples Services Directorate,Purchase of IT Equipment,F380,
http://opendatacommunities.org/id/london-borough-council/sutton,London Borough of Sutton,30/11/2019,1288531,66.50 , MAILCHIMP    MONTHLY,SOCIAL MEDIA ADVERTISING,Peoples Services Directorate,Advertising/Publicity (non Staff),F240,
http://opendatacommunities.org/id/london-borough-council/sutton,London Borough of Sutton,05/12/2019,1288531,26.20 , LUL TICKET MACHINE,TRAVEL EXPENSE 05/12/19 PREVENT NETWORK MEETING AT CAMDEN WORKING MEN'S COLLEGE,Peoples Services Directorate,Training - Travel and Subsistence,A521,
http://opendatacommunities.org/id/london-borough-council/sutton,London Borough of Sutton,05/12/2019,1288531,19.22 , FAST KEY SERVICES LIMI,SPARE KEYS FOR KEY CABINET,Peoples Services Directorate,General Maintenance,D500,
http://opendatacommunities.org/id/london-borough-council/sutton,London Borough of Sutton,02/12/2019,1288531,47.25 , WWW.DIRECTHYGIENE.COM,STANDARD BLUE CENTREFEED ROLL,Peoples Services Directorate,General Maintenance,D500,
http://opendatacommunities.org/id/london-borough-council/sutton,London Borough of Sutton,13/12/2019,1288531,40.00 , WWW.THEWORKS.CO.UK,COLLINS - ENGLISH POCKET SCHOOL DICTIONARY,Peoples Services Directorate,Education Equipment,F009,
http://opendatacommunities.org/id/london-borough-council/sutton,London Borough of Sutton,05/12/2019,1288531,53.23 , WWW.NCTJ.COM,BOOKS FOR JOURNALISM COURSE,Peoples Services Directorate,Books of Reference/Statute,F222,
http://opendatacommunities.org/id/london-borough-council/sutton,London Borough of Sutton,06/12/2019,1288531,28.28 , WORDERY,ADOBE INDESIGN CC CLASSROOM IN A BOOK,Peoples Services Directorate,Books,F006,
http://opendatacommunities.org/id/london-borough-council/sutton,London Borough of Sutton,05/12/2019,1288531,11.34 , MELBOURNE NURSERY,FLOWERS DEMO MATERIALS 05/12/19,Peoples Services Directorate,Education Equipment,F009,
http://opendatacommunities.org/id/london-borough-council/sutton,London Borough of Sutton,02/12/2019,1288531,4.25 , WAITROSE 677,SPRAY CARNATIONS FRESH C&G L2 2/12/19,Peoples Services Directorate,Education Equipment,F009,
http://opendatacommunities.org/id/london-borough-council/sutton,London Borough of Sutton,28/11/2019,1288531,10.40 , MELBOURNE NURSERY,FLOWERS DEMO MATERIALS 29/11/19,Peoples Services Directorate,Education Equipment,F009,
http://opendatacommunities.org/id/london-borough-council/sutton,London Borough of Sutton,27/11/2019,1288531,0.99 , ALDI STORES LTD,SPLIT - LIME AND ROSES FRESH MATERIALS C&G L3 27/11/19 (19.92%),Peoples Services Directorate,Education Equipment,F009,
http://opendatacommunities.org/id/london-borough-council/sutton,London Borough of Sutton,27/11/2019,1288531,3.32 , ALDI STORES LTD,SPLIT - LIME AND ROSES FRESH MATERIALS C&G L3 27/11/19 (80.08%),Peoples Services Directorate,Education Equipment,F009,
http://opendatacommunities.org/id/london-borough-council/sutton,London Borough of Sutton,12/12/2019,1288531,24.50 , SQ  THE FLOWER POCKET,FLORISTRY DEMO MATERILAS 12/12/19,Peoples Services Directorate,Other Equipment - Purchase,F015,
http://opendatacommunities.org/id/london-borough-council/sutton,London Borough of Sutton,11/12/2019,1288531,2.00 , SAINSBURYS SACAT 2006,COOKERY MATERIALS,Peoples Services Directorate,Education Equipment,F009,
http://opendatacommunities.org/id/london-borough-council/sutton,London Borough of Sutton,11/12/2019,1288531,1.30 , SAINSBURYS SACAT 2006,COOKERY MATERIALS,Peoples Services Directorate,Education Equipment,F009,
http://opendatacommunities.org/id/london-borough-council/sutton,London Borough of Sutton,10/12/2019,1288531,2.00 , WILKO RETAIL LIMITED,COOKERY MATERIALS,Peoples Services Directorate,Education Equipment,F009,
http://opendatacommunities.org/id/london-borough-council/sutton,London Borough of Sutton,10/12/2019,1288531,23.80 , SAINSBURYS 2006,COOKERY MATERIALS,Peoples Services Directorate,Education Equipment,F009,
http://opendatacommunities.org/id/london-borough-council/sutton,London Borough of Sutton,04/12/2019,1288531,3.20 , TESCO STORES 5511,COOKERY MATERIALS,Peoples Services Directorate,Education Equipment,F009,
http://opendatacommunities.org/id/london-borough-council/sutton,London Borough of Sutton,02/12/2019,1288531,23.25 , LIDL GB LONDON,COOKERY INGREDIENTS,Peoples Services Directorate,Education Equipment,F009,
http://opendatacommunities.org/id/london-borough-council/sutton,London Borough of Sutton,28/11/2019,1288531,7.00 , WILKO RETAIL LIMITED,COOKERY MATERIALS,Peoples Services Directorate,Education Equipment,F009,
http://opendatacommunities.org/id/london-borough-council/sutton,London Borough of Sutton,26/11/2019,1288531,2.00 , WILKO RETAIL LIMITED,COOKERY MATERIALS,Peoples Services Directorate,Education Equipment,F009,
http://opendatacommunities.org/id/london-borough-council/sutton,London Borough of Sutton,14/12/2019,1288531,20.00 , OYSTER BUS AUTOLOAD,20.00 - A530 0301 9999 - OYSTER TOP UP,Peoples Services Directorate,Travelling and Subsistence Allowances,A530,
http://opendatacommunities.org/id/london-borough-council/sutton,London Borough of Sutton,30/11/2019,1288531,20.00 , OYSTER BUS AUTOLOAD,20 A530 0301 9999 - OYSTER,Peoples Services Directorate,Travelling and Subsistence Allowances,A530,
http://opendatacommunities.org/id/london-borough-council/sutton,London Borough of Sutton,29/11/2019,1288531,20.00 , OYSTER BUS AUTOLOAD,20.00 A530 0301 9999 - OYSTER,Peoples Services Directorate,Travelling and Subsistence Allowances,A530,
http://opendatacommunities.org/id/london-borough-council/sutton,London Borough of Sutton,28/11/2019,1288531,20.00 , OYSTER AUTO-TOP UP,20.00 A530 0301 9999 - OYSTER,Peoples Services Directorate,Travelling and Subsistence Allowances,A530,
http://opendatacommunities.org/id/london-borough-council/sutton,London Borough of Sutton,26/11/2019,1288531,20.00 , OYSTER BUS AUTOLOAD,20 A530 0301 9999 - O,Peoples Services Directorate,Travelling and Subsistence Allowances,A530,
http://opendatacommunities.org/id/london-borough-council/sutton,London Borough of Sutton,30/11/2019,1288531,20.00 , OYSTER BUS AUTOLOAD,20 A530 0304 9999 - OYSTER,Peoples Services Directorate,Travelling and Subsistence Allowances,A530,
http://opendatacommunities.org/id/london-borough-council/sutton,London Borough of Sutton,04/12/2019,1288531,29.81 , MINICABIT,29.81 E072 0304 - MINICAB TO COLLECT BABY ITEMS AND BRING TO THE QUAD,Peoples Services Directorate,Hired Peoples Transport (Children),E072,
http://opendatacommunities.org/id/london-borough-council/sutton,London Borough of Sutton,27/11/2019,1288531,32.83 , LIDL GB LONDON,DR GROCERIES,Peoples Services Directorate,Personal Requisites,F106,
http://opendatacommunities.org/id/london-borough-council/sutton,London Borough of Sutton,27/11/2019,1288531,6.00 , SQ  WALLINGTON CAMERAS,DR PHOTO,Peoples Services Directorate,Personal Requisites,F106,
http://opendatacommunities.org/id/london-borough-council/sutton,London Borough of Sutton,27/11/2019,1288531,14.08 , IZ  GINGER FROG CATERI,DI ACTIVITY,Peoples Services Directorate,Personal Requisites,F106,
http://opendatacommunities.org/id/london-borough-council/sutton,London Borough of Sutton,28/11/2019,1288531,30.00 , WWW.CSKILLS.ORG,CSCS CARD APPLICATION,Peoples Services Directorate,Personal Requisites,F106,
http://opendatacommunities.org/id/london-borough-council/sutton,London Borough of Sutton,18/12/2019,1288531,10.94 , MOON ON THE HILL,RA ACTIVITY,Peoples Services Directorate,Personal Requisites,F106,
http://opendatacommunities.org/id/london-borough-council/sutton,London Borough of Sutton,17/12/2019,1288531,49.68 , W M MORRISON STORE,MC FOOD,Peoples Services Directorate,Personal Requisites,F106,
http://opendatacommunities.org/id/london-borough-council/sutton,London Borough of Sutton,19/12/2019,1288531,16.12 , INSTORE ANNIESLAND,MC PRESENTS,Peoples Services Directorate,Personal Requisites,F106,
http://opendatacommunities.org/id/london-borough-council/sutton,London Borough of Sutton,18/12/2019,1288531,33.00 , PRIMARK,XMAS PRESENT YP,Peoples Services Directorate,Personal Requisites,F106,
http://opendatacommunities.org/id/london-borough-council/sutton,London Borough of Sutton,17/12/2019,1288531,8.04 , MCDONALDS,MC ACTIVITY,Peoples Services Directorate,Personal Requisites,F106,
http://opendatacommunities.org/id/london-borough-council/sutton,London Borough of Sutton,17/12/2019,1288531,15.00 , POUNDLAND,XMAS DAY DINNER,Peoples Services Directorate,Personal Requisites,F106,
http://opendatacommunities.org/id/london-borough-council/sutton,London Borough of Sutton,16/12/2019,1288531,2.68 , PPOINT_ BEST CHOICE 78,MC ACT,Peoples Services Directorate,Personal Requisites,F106,
http://opendatacommunities.org/id/london-borough-council/sutton,London Borough of Sutton,16/12/2019,1288531,10.92 , MCDONALDS,MC ACTIVITY,Peoples Services Directorate,Personal Requisites,F106,
http://opendatacommunities.org/id/london-borough-council/sutton,London Borough of Sutton,24/12/2019,1288531,10.00 , EE TOP UP VESTA,MC PHONE TOP UP,Peoples Services Directorate,Personal Requisites,F106,
http://opendatacommunities.org/id/london-borough-council/sutton,London Borough of Sutton,24/12/2019,1288531,42.60 , ASDA SUPERSTORE,MC FAMILY PRESENTS,Peoples Services Directorate,Personal Requisites,F106,
http://opendatacommunities.org/id/london-borough-council/sutton,London Borough of Sutton,23/12/2019,1288531,6.73 , MCDONALDS,MC ACTIVITY,Peoples Services Directorate,Personal Requisites,F106,
http://opendatacommunities.org/id/london-borough-council/sutton,London Borough of Sutton,23/12/2019,1288531,17.00 , POUNDLAND,CARE LEAVERS XMAS DAY DINNER,Peoples Services Directorate,Personal Requisites,F106,
http://opendatacommunities.org/id/london-borough-council/sutton,London Borough of Sutton,19/12/2019,1288531,18.50 , SAINSBURYS SACAT 2006,MC XMAS FAMILY,Peoples Services Directorate,Personal Requisites,F106,
http://opendatacommunities.org/id/london-borough-council/sutton,London Borough of Sutton,19/12/2019,1288531,8.00 , PEACOCK STORES LTD,MC XMAS PRESENTS,Peoples Services Directorate,Personal Requisites,F106,
http://opendatacommunities.org/id/london-borough-council/sutton,London Borough of Sutton,13/12/2019,1288531,75.00 , 2MAA013019238 TD E-PMT,75 - F106 0304 9999 - TRAVEL DOCUMENT,Peoples Services Directorate,Personal Requisites,F106,
http://opendatacommunities.org/id/london-borough-council/sutton,London Borough of Sutton,13/12/2019,1288531,75.00 , 2MAA013019188 TD E-PMT,75 - F106 0304 9999 - TRAVEL DOCUMENT,Peoples Services Directorate,Personal Requisites,F106,
http://opendatacommunities.org/id/london-borough-council/sutton,London Borough of Sutton,09/12/2019,1288531,60.00 , WWW.TENPIN.CO.UK,60.00 F106 0304 9999 BOWLING.,Peoples Services Directorate,Personal Requisites,F106,
http://opendatacommunities.org/id/london-borough-council/sutton,London Borough of Sutton,28/11/2019,1288531,33.00 , IKEA LIMITED,33.00 - F106 0304 9999 - RECEIPT 25 - EXTRA 8 POUND PAID OVER THE PHONE DUE TO DELIVERY CHARGES.,Peoples Services Directorate,Personal Requisites,F106,
http://opendatacommunities.org/id/london-borough-council/sutton,London Borough of Sutton,15/12/2019,1288531,140.50 , PRIMARK,XMAS PRES YPS,Peoples Services Directorate,Personal Requisites,F106,
http://opendatacommunities.org/id/london-borough-council/sutton,London Borough of Sutton,13/12/2019,1288531,8.52 , MCDONALDS911,MA ACTIVITY,Peoples Services Directorate,Personal Requisites,F106,
http://opendatacommunities.org/id/london-borough-council/sutton,London Borough of Sutton,13/12/2019,1288531,17.00 , POUNDLAND LTD 1211,XMAS DAY DINNER,Peoples Services Directorate,Personal Requisites,F106,
http://opendatacommunities.org/id/london-borough-council/sutton,London Borough of Sutton,06/12/2019,1288531,28.60 , SUPERDRUG STORES PLC,XMAS YP,Peoples Services Directorate,Personal Requisites,F106,
http://opendatacommunities.org/id/london-borough-council/sutton,London Borough of Sutton,04/12/2019,1288531,4.76 , MCDONALDS911,MA ACTIVITY,Peoples Services Directorate,Personal Requisites,F106,
http://opendatacommunities.org/id/london-borough-council/sutton,London Borough of Sutton,04/12/2019,1288531,25.00 , PRIMARK,XMAS YP,Peoples Services Directorate,Personal Requisites,F106,
http://opendatacommunities.org/id/london-borough-council/sutton,London Borough of Sutton,04/12/2019,1288531,30.00 , PRIMARK,XMAS YP,Peoples Services Directorate,Personal Requisites,F106,
http://opendatacommunities.org/id/london-borough-council/sutton,London Borough of Sutton,04/12/2019,1288531,49.49 , BOOTS 0858,XMAS YP,Peoples Services Directorate,Personal Requisites,F106,
http://opendatacommunities.org/id/london-borough-council/sutton,London Borough of Sutton,03/12/2019,1288531,21.98 , LIDL GB LONDON,MC GROCERIES,Peoples Services Directorate,Personal Requisites,F106,
http://opendatacommunities.org/id/london-borough-council/sutton,London Borough of Sutton,03/12/2019,1288531,12.59 , MCDONALDS,MC ACTIVITY,Peoples Services Directorate,Personal Requisites,F106,
http://opendatacommunities.org/id/london-borough-council/sutton,London Borough of Sutton,02/12/2019,1288531,22.00 , LBSUTTON,KP CP BIRTH CERT,Peoples Services Directorate,Personal Requisites,F106,
http://opendatacommunities.org/id/london-borough-council/sutton,London Borough of Sutton,30/11/2019,1288531,29.59 , LIDL GB LONDON,LC GROCERIES,Peoples Services Directorate,Personal Requisites,F106,
http://opendatacommunities.org/id/london-borough-council/sutton,London Borough of Sutton,29/11/2019,1288531,94.75 , POST OFFICE COUNTER,JS PP,Peoples Services Directorate,Personal Requisites,F106,
http://opendatacommunities.org/id/london-borough-council/sutton,London Borough of Sutton,19/12/2019,1288531,10.00 , WALLINGTON STATION CAR,MC TAXI TO PLACEMENT,Peoples Services Directorate,C.C.A Travel & Subsistance,H212,
http://opendatacommunities.org/id/london-borough-council/sutton,London Borough of Sutton,29/11/2019,1288531,7.51 , CLOCK TOWER CARS,DR TAXI,Peoples Services Directorate,C.C.A Travel & Subsistance,H212,
http://opendatacommunities.org/id/london-borough-council/sutton,London Borough of Sutton,18/12/2019,1288531,134.99 , WAYFAIR #3035442654,LC SETTING UP,Peoples Services Directorate,Set Up Costs - Children Leaving Care,H336,
http://opendatacommunities.org/id/london-borough-council/sutton,London Borough of Sutton,03/12/2019,1288531,367.93 , WWW.ARGOS.CO.UK,SET UP COSTS,Peoples Services Directorate,Set Up Costs - Children Leaving Care,H336,
http://opendatacommunities.org/id/london-borough-council/sutton,London Borough of Sutton,20/12/2019,1288531,126.67 , AMZNMKTPLACE,LC SETTING UP,Peoples Services Directorate,Set Up Costs - Children Leaving Care,H336,
http://opendatacommunities.org/id/london-borough-council/sutton,London Borough of Sutton,03/12/2019,1288531,154.99 , HAPPY BEDS,LCT SET UP COST,Peoples Services Directorate,Set Up Costs - Children Leaving Care,H336,
http://opendatacommunities.org/id/london-borough-council/sutton,London Borough of Sutton,03/12/2019,1288531,213.98 , SP   LAURA JAMES HOME,LCT SET UP COST,Peoples Services Directorate,Set Up Costs - Children Leaving Care,H336,
http://opendatacommunities.org/id/london-borough-council/sutton,London Borough of Sutton,03/12/2019,1288531,76.99 , WWW.ARGOS.CO.UK,SET UP COSTS,Peoples Services Directorate,Set Up Costs - Children Leaving Care,H336,
http://opendatacommunities.org/id/london-borough-council/sutton,London Borough of Sutton,04/12/2019,1288531,43.95 , WWW.ARGOS.CO.UK,43.95 H336 0304 9999 ARGOS,Peoples Services Directorate,Set Up Costs - Children Leaving Care,H336,
http://opendatacommunities.org/id/london-borough-council/sutton,London Borough of Sutton,11/12/2019,1288531,154.50 , TVLICENSING.CO.UK,TV SH,Peoples Services Directorate,Set Up Costs - Children Leaving Care,H336,
http://opendatacommunities.org/id/london-borough-council/sutton,London Borough of Sutton,10/12/2019,1288531,(280.90), B & Q 1191,REFUND LC SET UP FROM NOVEMBER,Peoples Services Directorate,Set Up Costs - Children Leaving Care,H336,
http://opendatacommunities.org/id/london-borough-council/sutton,London Borough of Sutton,05/12/2019,1288531,209.80 , WWW.BEST4FLOORING.CO.U,SH SET UP,Peoples Services Directorate,Set Up Costs - Children Leaving Care,H336,
http://opendatacommunities.org/id/london-borough-council/sutton,London Borough of Sutton,27/11/2019,1288531,78.54 , IKEA LTD 144 CROYDON M,DR SET UP,Peoples Services Directorate,Set Up Costs - Children Leaving Care,H336,
http://opendatacommunities.org/id/london-borough-council/sutton,London Borough of Sutton,27/11/2019,1288531,127.99 , ARGOS RETAIL GROUP,JS SET UP,Peoples Services Directorate,Set Up Costs - Children Leaving Care,H336,
http://opendatacommunities.org/id/london-borough-council/sutton,London Borough of Sutton,24/12/2019,1288531,20.00 , OYSTER BUS AUTOLOAD,20.00 - A530 0310 9999 - OYSTER TOP UP,Peoples Services Directorate,Travelling and Subsistence Allowances,A530,
http://opendatacommunities.org/id/london-borough-council/sutton,London Borough of Sutton,24/12/2019,1288531,161.00 , CENTRAL CARS,160.00 - H212 0308 9999 - CENTRAL CARS.PDF,Peoples Services Directorate,C.C.A Travel & Subsistance,H212,
http://opendatacommunities.org/id/london-borough-council/sutton,London Borough of Sutton,20/12/2019,1288531,20.00 , OYSTER BUS AUTOLOAD,20.00 - A530 0310 9999 - OYSTER TOP UP,Peoples Services Directorate,Conferences - Travel and Subsistence,A526,
http://opendatacommunities.org/id/london-borough-council/sutton,London Borough of Sutton,26/12/2019,1288531,(20.00), OYSTER ONLINE,20.00 - A530 0310 9999 - OYSTER TOP UP,Peoples Services Directorate,Travelling and Subsistence Allowances,A530,
http://opendatacommunities.org/id/london-borough-council/sutton,London Borough of Sutton,22/12/2019,1288531,20.00 , OYSTER BUS AUTOLOAD,20.00 - A530 0310 9999 - OYSTER TOP UP,Peoples Services Directorate,Travelling and Subsistence Allowances,A530,
http://opendatacommunities.org/id/london-borough-council/sutton,London Borough of Sutton,20/12/2019,1288531,20.00 , OYSTER AUTO-TOP UP,20.00 - A530 0310 9999 - OYSTER TOP UP,Peoples Services Directorate,Travelling and Subsistence Allowances,A530,
http://opendatacommunities.org/id/london-borough-council/sutton,London Borough of Sutton,19/12/2019,1288531,20.00 , OYSTER ONLINE,20.00 - A530 0310 9999 - OYSTER TOP U,Peoples Services Directorate,Travelling and Subsistence Allowances,A530,
http://opendatacommunities.org/id/london-borough-council/sutton,London Borough of Sutton,18/12/2019,1288531,20.00 , OYSTER BUS AUTOLOAD,20.00 - A530 0310 9999 - OYSTER TOP UP,Peoples Services Directorate,Travelling and Subsistence Allowances,A530,
http://opendatacommunities.org/id/london-borough-council/sutton,London Borough of Sutton,18/12/2019,1288531,20.00 , OYSTER BUS AUTOLOAD,20.00 - A530 0310 9999 - OYSTER TOP UP,Peoples Services Directorate,Travelling and Subsistence Allowances,A530,
http://opendatacommunities.org/id/london-borough-council/sutton,London Borough of Sutton,19/12/2019,1288531,20.00 , OYSTER AUTO-TOP UP,20.00 - A530 0310 9999 - OYSTER TOP UP,Peoples Services Directorate,Travelling and Subsistence Allowances,A530,
http://opendatacommunities.org/id/london-borough-council/sutton,London Borough of Sutton,12/12/2019,1288531,20.00 , OYSTER ONLINE,20.00 - A530 0310 9999 - OYSTER TOP UP,Peoples Services Directorate,Travelling and Subsistence Allowances,A530,
http://opendatacommunities.org/id/london-borough-council/sutton,London Borough of Sutton,05/12/2019,1288531,20.00 , OYSTER BUS AUTOLOAD,20.00 A530 0310 9999,Peoples Services Directorate,Travelling and Subsistence Allowances,A530,
http://opendatacommunities.org/id/london-borough-council/sutton,London Borough of Sutton,05/12/2019,1288531,20.00 , OYSTER BUS AUTOLOAD,20.00 - A530 0310 9999 - OYSTER TOP UP,Peoples Services Directorate,Travelling and Subsistence Allowances,A530,
http://opendatacommunities.org/id/london-borough-council/sutton,London Borough of Sutton,20/12/2019,1288531,16.67 , OYSTER BUS AUTOLOAD,TRAVEL,Peoples Services Directorate,Travelling and Subsistence Allowances,A530,
http://opendatacommunities.org/id/london-borough-council/sutton,London Borough of Sutton,27/11/2019,1288531,20.00 , OYSTER AUTO-TOP UP,20.00 - A530 0310 9999 - OYSTER TOP UP,Peoples Services Directorate,Travelling and Subsistence Allowances,A530,
http://opendatacommunities.org/id/london-borough-council/sutton,London Borough of Sutton,12/12/2019,1288531,22.00 , SURREY CC CARD PAY,BIRTH CERTIFICATE,Peoples Services Directorate,Personal Requisites,F106,
http://opendatacommunities.org/id/london-borough-council/sutton,London Borough of Sutton,12/12/2019,1288531,22.00 , SURREY CC CARD PAY,BIRTH CERTIFICATE,Peoples Services Directorate,Personal Requisites,F106,
http://opendatacommunities.org/id/london-borough-council/sutton,London Borough of Sutton,09/12/2019,1288531,62.66 , TRAVELODGE,SPLIT - ACCOMMODATION & WIFI (85.65%),Peoples Services Directorate,Accommodation - Bed and Breakfast,H202,
http://opendatacommunities.org/id/london-borough-council/sutton,London Borough of Sutton,09/12/2019,1288531,10.50 , TRAVELODGE,SPLIT - BREAKFAST BOX (14.35%),Peoples Services Directorate,Accommodation - Bed and Breakfast,H202,
http://opendatacommunities.org/id/london-borough-council/sutton,London Borough of Sutton,10/12/2019,1288531,119.00 , HOLIDAY INNS,ACCOMMODATION,Peoples Services Directorate,Accommodation - Bed and Breakfast,H202,
http://opendatacommunities.org/id/london-borough-council/sutton,London Borough of Sutton,10/12/2019,1288531,96.49 , TRAVELODGE,EMERGENCY ACCOMMODATION,Peoples Services Directorate,Accommodation - Bed and Breakfast,H202,
http://opendatacommunities.org/id/london-borough-council/sutton,London Borough of Sutton,06/12/2019,1288531,205.22 , TRAVELODGE,EMERGENCY ACCOMMODATION,Peoples Services Directorate,Accommodation - Bed and Breakfast,H202,
http://opendatacommunities.org/id/london-borough-council/sutton,London Borough of Sutton,29/11/2019,1288531,731.93 , TRAVELODGE,731.93 - H202 0310 9999 - TRAVELODGE - LONDON WIMBLEDON MORDEN,Peoples Services Directorate,Accommodation - Bed and Breakfast,H202,
http://opendatacommunities.org/id/london-borough-council/sutton,London Borough of Sutton,27/11/2019,1288531,20.00 , OYSTER AUTO-TOP UP,OYSTER TOP UP,Peoples Services Directorate,Travelling and Subsistence Allowances,A530,
http://opendatacommunities.org/id/london-borough-council/sutton,London Borough of Sutton,19/12/2019,1288531,20.00 , OYSTER AUTO-TOP UP,20.00 A530 9999,Peoples Services Directorate,Travelling and Subsistence Allowances,A530,
http://opendatacommunities.org/id/london-borough-council/sutton,London Borough of Sutton,19/12/2019,1288531,20.00 , OYSTER BUS AUTOLOAD,20.00 - A530.PNG,Peoples Services Directorate,Travelling and Subsistence Allowances,A530,
http://opendatacommunities.org/id/london-borough-council/sutton,London Borough of Sutton,05/12/2019,1288531,20.00 , WWW.WIGHTLINK.CO.UK,CONTACT TRAVEL COST,Peoples Services Directorate,Travelling and Subsistence Allowances,A530,
http://opendatacommunities.org/id/london-borough-council/sutton,London Borough of Sutton,13/12/2019,1288531,20.00 , OYSTER BUS AUTOLOAD,20.00 A530 0311 9999 - OYSTER TOP UP,Peoples Services Directorate,Travelling and Subsistence Allowances,A530,
http://opendatacommunities.org/id/london-borough-council/sutton,London Borough of Sutton,13/12/2019,1288531,20.00 , OYSTER AUTO-TOP UP,20.00 A530 0311 9999 - OYSTER TOP UP,Peoples Services Directorate,Travelling and Subsistence Allowances,A530,
http://opendatacommunities.org/id/london-borough-council/sutton,London Borough of Sutton,12/12/2019,1288531,20.00 , OYSTER ONLINE,20 - A530 0311 9999 - OYSTER,Peoples Services Directorate,Travelling and Subsistence Allowances,A530,
http://opendatacommunities.org/id/london-borough-council/sutton,London Borough of Sutton,11/12/2019,1288531,20.00 , OYSTER BUS AUTOLOAD,20.00 - A530 0311 9999 - OYSTER TOP UP,Peoples Services Directorate,Travelling and Subsistence Allowances,A530,
http://opendatacommunities.org/id/london-borough-council/sutton,London Borough of Sutton,11/12/2019,1288531,20.00 , OYSTER AUTO-TOP UP,20.00 A530 0311 9999 - OYSTER TOP UP,Peoples Services Directorate,Travelling and Subsistence Allowances,A530,
http://opendatacommunities.org/id/london-borough-council/sutton,London Borough of Sutton,05/12/2019,1288531,20.00 , TFL AUTOSETTLEMENT,20.00 - A530 0311 9999 - OYSTER TOP UP,Peoples Services Directorate,Travelling and Subsistence Allowances,A530,
http://opendatacommunities.org/id/london-borough-council/sutton,London Borough of Sutton,22/12/2019,1288531,10.59 , AMAZON.CO.UK CS5737VP5,"SPLIT - THE MOOD CARDS: MAKE SENSE OF YOUR MOODS AND EMOTIONS FOR CLARITY, CONFIDENCE AND WELL-BEING (80.96%)",Peoples Services Directorate,Personal Requisites,F106,
http://opendatacommunities.org/id/london-borough-council/sutton,London Borough of Sutton,22/12/2019,1288531,2.49 , AMAZON.CO.UK CS5737VP5,BALANCING ENTRY AMOUNT (19.04%),Peoples Services Directorate,Personal Requisites,F106,
http://opendatacommunities.org/id/london-borough-council/sutton,London Borough of Sutton,19/12/2019,1288531,112.50 , BEECH MOUNT EXECUTIVE,CHRISTMAS DINNER BOOKING BEECH MOUNT HOTEL,Peoples Services Directorate,Personal Requisites,F106,
http://opendatacommunities.org/id/london-borough-council/sutton,London Borough of Sutton,19/12/2019,1288531,53.55 , AMFBOWLING.CO.UK,BOWLING,Peoples Services Directorate,Personal Requisites,F106,
http://opendatacommunities.org/id/london-borough-council/sutton,London Borough of Sutton,28/11/2019,1288531,22.00 , L B SOUTHWARK - INT,SOUTHWARK BIRTH CERTIFICATE,Peoples Services Directorate,Personal Requisites,F106,
http://opendatacommunities.org/id/london-borough-council/sutton,London Borough of Sutton,28/11/2019,1288531,25.90 , EMPIRE CINEMAS,CINEMA TICKETS,Peoples Services Directorate,Personal Requisites,F106,
http://opendatacommunities.org/id/london-borough-council/sutton,London Borough of Sutton,17/12/2019,1288531,512.94 , WWW.ARGOS.CO.UK,FOSTER CARER EQUIPMENT,Peoples Services Directorate,Personal Requisites,F106,
http://opendatacommunities.org/id/london-borough-council/sutton,London Borough of Sutton,17/12/2019,1288531,127.00 , HM PASSPORT,FAST TRACK PASSPORT,Peoples Services Directorate,Personal Requisites,F106,
http://opendatacommunities.org/id/london-borough-council/sutton,London Borough of Sutton,17/12/2019,1288531,199.98 , WWW.ARGOS.CO.UK,FOSTER CARER EQUIPMENT,Peoples Services Directorate,Personal Requisites,F106,
http://opendatacommunities.org/id/london-borough-council/sutton,London Borough of Sutton,10/12/2019,1288531,18.00 , VILLAGE CERAMICS-,CONTACT ACTIVITY,Peoples Services Directorate,Personal Requisites,F106,
http://opendatacommunities.org/id/london-borough-council/sutton,London Borough of Sutton,10/12/2019,1288531,30.30 , WWW.TENPIN.CO.UK,CONTACT ACTIVITY,Peoples Services Directorate,Personal Requisites,F106,
http://opendatacommunities.org/id/london-borough-council/sutton,London Borough of Sutton,04/12/2019,1288531,33.00 , LBSUTTON,BIRTH CERT,Peoples Services Directorate,Personal Requisites,F106,
http://opendatacommunities.org/id/london-borough-council/sutton,London Borough of Sutton,11/12/2019,1288531,73.20 , WWW.WIGHTLINK.CO.UK,73.20 - F106 0311 9999 - WIGHT LINK FERRY FOR CONTACT - CLIENTS,Peoples Services Directorate,Personal Requisites,F106,
http://opendatacommunities.org/id/london-borough-council/sutton,London Borough of Sutton,04/12/2019,1288531,190.00 , PREMIER INN,190.00 F106 0311 9999 PREMIER INN,Peoples Services Directorate,Personal Requisites,F106,
http://opendatacommunities.org/id/london-borough-council/sutton,London Borough of Sutton,10/12/2019,1288531,462.00 , SCOTTS BUTCHERS,IYS AWARD CEREMONY,Peoples Services Directorate,Provisions - General,F150,
http://opendatacommunities.org/id/london-borough-council/sutton,London Borough of Sutton,17/12/2019,1288531,72.50 , PREMIER INN,CONTACT ACCOMMODATION,Peoples Services Directorate,Accommodation - Bed and Breakfast,H202,
http://opendatacommunities.org/id/london-borough-council/sutton,London Borough of Sutton,19/12/2019,1288531,193.00 , HOTEL ON BOOKING.COM,193.00 - H202 0311 9999 - BOOKING.COM HOTEL,Peoples Services Directorate,Accommodation - Bed and Breakfast,H202,
http://opendatacommunities.org/id/london-borough-council/sutton,London Borough of Sutton,05/12/2019,1288531,91.00 , PREMIER INN,EMERGENCY ACCOMMODATION,Peoples Services Directorate,Payments Under the Child Care Act 1980,H210,
http://opendatacommunities.org/id/london-borough-council/sutton,London Borough of Sutton,10/12/2019,1288531,57.26 , MINICABIT,CONTACT TRAVEL,Peoples Services Directorate,C.C.A Travel & Subsistance,H212,
http://opendatacommunities.org/id/london-borough-council/sutton,London Borough of Sutton,05/12/2019,1288531,(20.99), AMZ PRICE-RIGHT-HOME,"SPLIT - PRICE RIGHT HOME METRO GEOMETRIC DIAMOND LINED CURTAINS 54"" DROP - BLUSH (44.68%)",Peoples Services Directorate,Client Care/Assistance,H301,
http://opendatacommunities.org/id/london-borough-council/sutton,London Borough of Sutton,05/12/2019,1288531,(25.99), AMZ PRICE-RIGHT-HOME,SPLIT - PRICE RIGHT HOME METRO GEOMETRIC DIAMOND DOUBLE DUVET COVER SET - BLUSH (55.32%),Peoples Services Directorate,Client Care/Assistance,H301,
http://opendatacommunities.org/id/london-borough-council/sutton,London Borough of Sutton,13/12/2019,1288531,20.00 , OYSTER AUTO-TOP UP,20.00 - A530 0311 9999 - OYSTER AUTO TOP UP .PNG,Peoples Services Directorate,Travelling and Subsistence Allowances,A530,
http://opendatacommunities.org/id/london-borough-council/sutton,London Borough of Sutton,15/12/2019,1288531,20.00 , OYSTER BUS AUTOLOAD,20.00 - A530 0312 9999 - OYSTER TOP UP,Peoples Services Directorate,Travelling and Subsistence Allowances,A530,
http://opendatacommunities.org/id/london-borough-council/sutton,London Borough of Sutton,14/12/2019,1288531,20.00 , OYSTER AUTO-TOP UP,20.00 - A530 0312 9999 - OYSTER TOP UP,Peoples Services Directorate,Travelling and Subsistence Allowances,A530,
http://opendatacommunities.org/id/london-borough-council/sutton,London Borough of Sutton,03/12/2019,1288531,75.00 , NUGENTS NEWSAGENTS, OYSTER CARDS,Peoples Services Directorate,Travelling and Subsistence Allowances,A530,
http://opendatacommunities.org/id/london-borough-council/sutton,London Borough of Sutton,11/12/2019,1288531,20.00 , OYSTER AUTO-TOP UP,20.00 - A530 0312 9999 - OYSTER TOP UP,Peoples Services Directorate,Travelling and Subsistence Allowances,A530,
http://opendatacommunities.org/id/london-borough-council/sutton,London Borough of Sutton,30/11/2019,1288531,20.00 , OYSTER AUTO-TOP UP,20 A530 0312 9999 - OYSTER,Peoples Services Directorate,Travelling and Subsistence Allowances,A530,
http://opendatacommunities.org/id/london-borough-council/sutton,London Borough of Sutton,28/11/2019,1288531,22.00 , LBSUTTON,SUTTON BIRTH CERTIFICATE,Peoples Services Directorate,Personal Requisites,F106,
http://opendatacommunities.org/id/london-borough-council/sutton,London Borough of Sutton,20/12/2019,1288531,33.00 , KENT COUNTY COUNCIL,33.00 - F106 0312 9999 - KENT COUNCIL BIRTH CERTIFICATE,Peoples Services Directorate,Personal Requisites,F106,
http://opendatacommunities.org/id/london-borough-council/sutton,London Borough of Sutton,04/12/2019,1288531,22.00 , LBSUTTON,BIRTH CERT,Peoples Services Directorate,Personal Requisites,F106,
http://opendatacommunities.org/id/london-borough-council/sutton,London Borough of Sutton,13/12/2019,1288531,70.00 , SURREY CC CARD PAY,70 - F106 0312 9999 - BIRTH CERT,Peoples Services Directorate,Personal Requisites,F106,
http://opendatacommunities.org/id/london-borough-council/sutton,London Borough of Sutton,11/12/2019,1288531,33.00 , LBSUTTON,33.00 -F106 0312 9999 - SUTTON BIRTH CERTIFICATES,Peoples Services Directorate,Personal Requisites,F106,
http://opendatacommunities.org/id/london-borough-council/sutton,London Borough of Sutton,11/12/2019,1288531,24.00 , WANDSWORTH COUNCIL,24 - F106 0312 9999 - BIRTH CERTIFICATE - WANDSWORTH,Peoples Services Directorate,Personal Requisites,F106,
http://opendatacommunities.org/id/london-borough-council/sutton,London Borough of Sutton,09/12/2019,1288531,366.25 , THE POST OFFICE,366.25 - PASSPORT RECEIPT,Peoples Services Directorate,Personal Requisites,F106,
http://opendatacommunities.org/id/london-borough-council/sutton,London Borough of Sutton,19/12/2019,1288531,33.00 , LBSUTTON,33.00 - F106 0312 9999 - KENT COUNCIL BIRTH CERTIFICATE,Peoples Services Directorate,Personal Requisites,F106,
http://opendatacommunities.org/id/london-borough-council/sutton,London Borough of Sutton,29/11/2019,1288531,20.22 , VUE ENTERTAINMENT LTD,20.22 - F106 0312 9999 CINEMA,Peoples Services Directorate,Personal Requisites,F106,
http://opendatacommunities.org/id/london-borough-council/sutton,London Borough of Sutton,29/11/2019,1288531,35.98 , OFFICIALRECORDCOUK,35.98 F106 0312 9999 - BIRTH CERTIFICATE,Peoples Services Directorate,Personal Requisites,F106,
http://opendatacommunities.org/id/london-borough-council/sutton,London Borough of Sutton,29/11/2019,1288531,35.98 , OFFICIALRECORDCOUK,35.98 F106 0312 9999 - BIRTH CERTIFICATE,Peoples Services Directorate,Personal Requisites,F106,
http://opendatacommunities.org/id/london-borough-council/sutton,London Borough of Sutton,18/12/2019,1288531,53.33 , KARDEN HOUSE,HOTEL FOR CLIENT,Peoples Services Directorate,Accommodation - Bed and Breakfast,H202,
http://opendatacommunities.org/id/london-borough-council/sutton,London Borough of Sutton,03/12/2019,1288531,75.00 , THE WAVERLEY HOTEL BAN,CONTACT ACCOMMODATION,Peoples Services Directorate,Accommodation - Bed and Breakfast,H202,
http://opendatacommunities.org/id/london-borough-council/sutton,London Borough of Sutton,03/12/2019,1288531,62.50 , PREMIER INN,EMERGENCY ACCOMMODATION,Peoples Services Directorate,Accommodation - Bed and Breakfast,H202,
http://opendatacommunities.org/id/london-borough-council/sutton,London Borough of Sutton,05/12/2019,1288531,772.00 , FUNERAL SERVICES,FUNERAL COSTS,Peoples Services Directorate,Payments Under the Child Care Act 1980,H210,
http://opendatacommunities.org/id/london-borough-council/sutton,London Borough of Sutton,26/11/2019,1288531,95.24 , TRAVELODGE,EMERGENCY ACCOMMODATION,Peoples Services Directorate,C.C.A Travel & Subsistance,H212,
http://opendatacommunities.org/id/london-borough-council/sutton,London Borough of Sutton,11/12/2019,1288531,78.75 , BELL CARRIAGE LTD,BELL CARRIAGE - CAB 78.75 AWAITING RECEIPT,Peoples Services Directorate,C.C.A Travel & Subsistance,H212,
http://opendatacommunities.org/id/london-borough-council/sutton,London Borough of Sutton,03/12/2019,1288531,85.00 , THE WAVERLEY HOTEL BAN,CONTACT ACCOMMODATION,Peoples Services Directorate,Accommodation - Bed and Breakfast,H202,
http://opendatacommunities.org/id/london-borough-council/sutton,London Borough of Sutton,25/12/2019,1288531,20.00 , OYSTER AUTO-TOP UP,20.00 A530 0318 9999,Peoples Services Directorate,Travelling and Subsistence Allowances,A530,
http://opendatacommunities.org/id/london-borough-council/sutton,London Borough of Sutton,21/12/2019,1288531,20.00 , OYSTER BUS AUTOLOAD,20.00 - A530 0318 9999 - OYSTER TOP UP,Peoples Services Directorate,Travelling and Subsistence Allowances,A530,
http://opendatacommunities.org/id/london-borough-council/sutton,London Borough of Sutton,14/12/2019,1288531,20.00 , OYSTER AUTO-TOP UP,20.00 - A530 0318 9999 - OYSTER TOP,Peoples Services Directorate,Travelling and Subsistence Allowances,A530,
http://opendatacommunities.org/id/london-borough-council/sutton,London Borough of Sutton,19/12/2019,1288531,20.00 , OYSTER BUS AUTOLOAD,20.00 - A530 0318 9999 - OYSTER TOP UP,Peoples Services Directorate,Travelling and Subsistence Allowances,A530,
http://opendatacommunities.org/id/london-borough-council/sutton,London Borough of Sutton,19/12/2019,1288531,20.00 , OYSTER BUS AUTOLOAD,20.00 - A530 0318 9999 - OYSTER TOP UP,Peoples Services Directorate,Travelling and Subsistence Allowances,A530,
http://opendatacommunities.org/id/london-borough-council/sutton,London Borough of Sutton,04/12/2019,1288531,20.00 , OYSTER AUTO-TOP UP,20.00 - AUTO TOP UP -A530 0318 9999,Peoples Services Directorate,Travelling and Subsistence Allowances,A530,
http://opendatacommunities.org/id/london-borough-council/sutton,London Borough of Sutton,01/12/2019,1288531,20.00 , OYSTER BUS AUTOLOAD,20.00 A530 0318 9999,Peoples Services Directorate,Travelling and Subsistence Allowances,A530,
http://opendatacommunities.org/id/london-borough-council/sutton,London Borough of Sutton,28/11/2019,1288531,20.00 , OYSTER BUS AUTOLOAD,20.00 - A530 0318 9999 - OYSTER TOP UP,Peoples Services Directorate,Travelling and Subsistence Allowances,A530,
http://opendatacommunities.org/id/london-borough-council/sutton,London Borough of Sutton,25/11/2019,1288531,20.00 , WWW.WIGHTLINK.CO.UK,20.00 - F106 0320 9999 - WRIGHTLINK FERRY BOOKING .PNG,Peoples Services Directorate,Personal Requisites,F106,
http://opendatacommunities.org/id/london-borough-council/sutton,London Borough of Sutton,21/12/2019,1288531,20.00 , FACEBK  A5K6GQNXK2,FACEBOOK ADVERTISING,Peoples Services Directorate,Fees - Other,F299,
http://opendatacommunities.org/id/london-borough-council/sutton,London Borough of Sutton,20/12/2019,1288531,20.00 , FACEBK  7Q39JQNWK2,FACEBOOK ADVERTISING,Peoples Services Directorate,Fees - Other,F299,
http://opendatacommunities.org/id/london-borough-council/sutton,London Borough of Sutton,30/11/2019,1288531,6.60 , FACEBK  FZ5Q4QNWK2,FACEBOOK ADVERTISING,Peoples Services Directorate,Fees - Other,F299,
http://opendatacommunities.org/id/london-borough-council/sutton,London Borough of Sutton,23/12/2019,1288531,25.00 , FACEBK  QGYW2REXK2,FACEBOOK ADVERTISING,Peoples Services Directorate,Miscellaneous Training Courses,F304,
http://opendatacommunities.org/id/london-borough-council/sutton,London Borough of Sutton,26/11/2019,1288531,185.20 , PARTRIDGE & PRINT,FOSTERING BOOKS,Peoples Services Directorate,Training - Course Fees,A520,
http://opendatacommunities.org/id/london-borough-council/sutton,London Borough of Sutton,27/11/2019,1288531,20.00 , OYSTER BUS AUTOLOAD,20.00 AUTO TOP UP - A530 0330 9999,Chief Executive's Directorate,Recruitment Expenses,A531,
http://opendatacommunities.org/id/london-borough-council/sutton,London Borough of Sutton,23/12/2019,1288531,4.82 , LOYD 49-53 HIGH ST,RELATING TO SUBSCRIPTION TO INFOGRAM,Chief Executive's Directorate,Subscriptions - General,F450,
http://opendatacommunities.org/id/london-borough-council/sutton,London Borough of Sutton,20/12/2019,1288531,175.40 , INFOGRAM.COM,SUBSCRIPTION TO INFOGRAM,Chief Executive's Directorate,Subscriptions - General,F450,
http://opendatacommunities.org/id/london-borough-council/sutton,London Borough of Sutton,28/11/2019,1288531,159.00 , HOLIDAY INNS,159.00 - H212 0331 9999 - HOLIDAY INN SUTTON .PNG,Chief Executive's Directorate,C.C.A Travel & Subsistance,H212,
http://opendatacommunities.org/id/london-borough-council/sutton,London Borough of Sutton,13/12/2019,1288531,7.94 , AMZNMKTPLACE,"SPLIT - SANDISK ULTRA SDHC MEMORY CARD UP TO 80 MB/S, CLASS 10, U1, 32 GB, BLACK/GREY (100%)",Peoples Services Directorate,Personal Requisites,F106,
http://opendatacommunities.org/id/london-borough-council/sutton,London Borough of Sutton,12/12/2019,1288531,51.66 , TESCO STORES 5999,51.66 - F106 0340 9999 - TESCO ORDER FOR SFC,Peoples Services Directorate,Personal Requisites,F106,
http://opendatacommunities.org/id/london-borough-council/sutton,London Borough of Sutton,19/12/2019,1288531,20.00 , OYSTER BUS AUTOLOAD,20.00 - A530 0359 9999 - OYSTER TOP UP 19TH DEC .PNG,Peoples Services Directorate,Travelling and Subsistence Allowances,A530,
http://opendatacommunities.org/id/london-borough-council/sutton,London Borough of Sutton,18/12/2019,1288531,20.00 , OYSTER BUS AUTOLOAD,20.00 - A530 0359 9999 - OYSTER TOP UP,Peoples Services Directorate,Travelling and Subsistence Allowances,A530,
http://opendatacommunities.org/id/london-borough-council/sutton,London Borough of Sutton,18/12/2019,1288531,20.00 , OYSTER BUS AUTOLOAD,20.00 - A530 0359 9999 - OYSTER TOP UP,Peoples Services Directorate,Travelling and Subsistence Allowances,A530,
http://opendatacommunities.org/id/london-borough-council/sutton,London Borough of Sutton,18/12/2019,1288531,20.00 , OYSTER BUS AUTOLOAD,20.00 - A530 0359 9999 - OYSTER TOP UP,Peoples Services Directorate,Travelling and Subsistence Allowances,A530,
http://opendatacommunities.org/id/london-borough-council/sutton,London Borough of Sutton,14/12/2019,1288531,20.00 , OYSTER BUS AUTOLOAD,20.00 - A530 0359 9999 - OYSTER TOP,Peoples Services Directorate,Travelling and Subsistence Allowances,A530,
http://opendatacommunities.org/id/london-borough-council/sutton,London Borough of Sutton,11/12/2019,1288531,35.00 , OYSTER ONLINE,35.00 - A530 0359 9999 - OYSTER TOP UP,Peoples Services Directorate,Travelling and Subsistence Allowances,A530,
http://opendatacommunities.org/id/london-borough-council/sutton,London Borough of Sutton,09/12/2019,1288531,31.05 , OYSTER ONLINE,31.05 - A530 0359 9999 - OYSTER TOP UP 9TH DEC,Peoples Services Directorate,Travelling and Subsistence Allowances,A530,
http://opendatacommunities.org/id/london-borough-council/sutton,London Borough of Sutton,08/12/2019,1288531,20.00 , OYSTER BUS AUTOLOAD,20.00 - A530 0359 9999 - OYSTER,Peoples Services Directorate,Travelling and Subsistence Allowances,A530,
http://opendatacommunities.org/id/london-borough-council/sutton,London Borough of Sutton,05/12/2019,1288531,20.00 , OYSTER BUS AUTOLOAD,20.00 - A530 0359 9999 - OYSTER TOP UP,Peoples Services Directorate,Travelling and Subsistence Allowances,A530,
http://opendatacommunities.org/id/london-borough-council/sutton,London Borough of Sutton,03/12/2019,1288531,20.00 , OYSTER BUS AUTOLOAD,20.00 - A530 0359 9999 - OYSTER TOP UP,Peoples Services Directorate,Travelling and Subsistence Allowances,A530,
http://opendatacommunities.org/id/london-borough-council/sutton,London Borough of Sutton,07/12/2019,1288531,20.00 , OYSTER BUS AUTOLOAD,20.00 A530 0359 9999 OYSTER,Peoples Services Directorate,Travelling and Subsistence Allowances,A530,
http://opendatacommunities.org/id/london-borough-council/sutton,London Borough of Sutton,10/12/2019,1288531,495.00 , AH MEDIA LTD,TRAINING FEES,Chief Executive's Directorate,Training - Course Fees,A520,
http://opendatacommunities.org/id/london-borough-council/sutton,London Borough of Sutton,11/12/2019,1288531,32.78 , ESSENTRA PACKAGING,32.78 - F001 0370 9999 - PRINTER RIBBONS,Peoples Services Directorate,Administrative Equipment,F001,
http://opendatacommunities.org/id/london-borough-council/sutton,London Borough of Sutton,19/12/2019,1288531,25.90 , EMPIRE CINEMAS,25.90 - F106 0371 9999 - EMPIRE CINEMA TICKETS SUTTON,Peoples Services Directorate,Personal Requisites,F106,
http://opendatacommunities.org/id/london-borough-council/sutton,London Borough of Sutton,23/12/2019,1288531,"3,199.00 ", UKBA11298566838,3199.00 - F106 0380 9999 - CERTIFICATE OF SPONSORSHIP.PNG,Peoples Services Directorate,Personal Requisites,F106,
http://opendatacommunities.org/id/london-borough-council/sutton,London Borough of Sutton,23/12/2019,1288531,"3,199.00 ", UKBA11298563234,3199.00 - F106 0380 9999 - CERTIFICATE OF SPONSORSHIP .PNG,Peoples Services Directorate,Personal Requisites,F106,
http://opendatacommunities.org/id/london-borough-council/sutton,London Borough of Sutton,23/12/2019,1288531,"3,199.00 ", UKBA11298557820,3199.00 - F106 0380 9999 - CERTIFICATE OF SPONSORSHIP .PNG,Peoples Services Directorate,Personal Requisites,F106,
http://opendatacommunities.org/id/london-borough-council/sutton,London Borough of Sutton,05/12/2019,1288531,10.00 , WILKO RETAIL LIMITED,10.00 - F150 0380 9999 - WILKO,Peoples Services Directorate,Provisions - General,F150,
http://opendatacommunities.org/id/london-borough-council/sutton,London Borough of Sutton,05/12/2019,1288531,45.64 , TESCO STORE 3235,45.64 - F150 0380 9999 - TESCO,Peoples Services Directorate,Provisions - General,F150,
http://opendatacommunities.org/id/london-borough-council/sutton,London Borough of Sutton,05/12/2019,1288531,47.85 , TESCO STORE 3235,47.85 - F150 0380 9999 - TESCO,Peoples Services Directorate,Provisions - General,F150,
http://opendatacommunities.org/id/london-borough-council/sutton,London Borough of Sutton,04/12/2019,1288531,16.67 , OYSTER BUS AUTOLOAD,TRAVEL,Peoples Services Directorate,Travelling and Subsistence Allowances,A530,
http://opendatacommunities.org/id/london-borough-council/sutton,London Borough of Sutton,28/11/2019,1288531,16.67 , OYSTER BUS AUTOLOAD,TRAVEL,Peoples Services Directorate,Travelling and Subsistence Allowances,A530,
http://opendatacommunities.org/id/london-borough-council/sutton,London Borough of Sutton,19/12/2019,1288531,20.00 , OYSTER BUS AUTOLOAD,20.00 - A530 0383 9999 - OYSTER TOP UP,Peoples Services Directorate,Travelling and Subsistence Allowances,A530,
http://opendatacommunities.org/id/london-borough-council/sutton,London Borough of Sutton,19/12/2019,1288531,(20.00), OYSTER ONLINE,20.00 - A530 0383 9999 - OYSTER TOP UP,Peoples Services Directorate,Travelling and Subsistence Allowances,A530,
http://opendatacommunities.org/id/london-borough-council/sutton,London Borough of Sutton,12/12/2019,1288531,20.00 , OYSTER BUS AUTOLOAD,20 - A530 0383 9999 - OYSTER,Peoples Services Directorate,Travelling and Subsistence Allowances,A530,
http://opendatacommunities.org/id/london-borough-council/sutton,London Borough of Sutton,07/12/2019,1288531,20.00 , OYSTER AUTO-TOP UP,20.00 - A530 0383 9999 - OYSTER TOP UP,Peoples Services Directorate,Travelling and Subsistence Allowances,A530,
http://opendatacommunities.org/id/london-borough-council/sutton,London Borough of Sutton,04/12/2019,1288531,20.00 , OYSTER BUS AUTOLOAD,20.00 AUTO TOP UP - A530 0383 9999,Peoples Services Directorate,Travelling and Subsistence Allowances,A530,
http://opendatacommunities.org/id/london-borough-council/sutton,London Borough of Sutton,01/12/2019,1288531,20.00 , OYSTER AUTO-TOP UP,20.00 A530 0383 9999,Peoples Services Directorate,Travelling and Subsistence Allowances,A530,
http://opendatacommunities.org/id/london-borough-council/sutton,London Borough of Sutton,26/11/2019,1288531,10.98 , AMZNMKTPLACE AMAZON.CO,"SPLIT - ERGONOMIC VERTICAL USB WIRELESS VERTICAL RECHARGEABLE MOUSE,2.4G SCROLL ENDURANCE MOUSE HIGH PRECISION OPTICAL MOUSE FOR PC/LAPTOP/MAC, PALM REST THUMB BUTTONS ADJUSTABLE 3DPI,5 BUTTONS-MATTE BLACK (68.75%)",Peoples Services Directorate,Administrative Equipment,F001,
http://opendatacommunities.org/id/london-borough-council/sutton,London Borough of Sutton,26/11/2019,1288531,4.99 , AMZNMKTPLACE AMAZON.CO,BALANCING ENTRY AMOUNT (31.25%),Peoples Services Directorate,Administrative Equipment,F001,
http://opendatacommunities.org/id/london-borough-council/sutton,London Borough of Sutton,16/12/2019,1288531,71.23 , MINICABIT,MINICABIT,Peoples Services Directorate,C.C.A Travel & Subsistance,H212,
http://opendatacommunities.org/id/london-borough-council/sutton,London Borough of Sutton,22/12/2019,1288531,7.19 , AMAZON.CO.UK 7G99K6WM5,"SPLIT - THE EXCELLENT AUDITION GUIDE (HOW TO DO FANTASTIC AUDITIONS, GIVE GREAT INTERVIEWS, PREPARE AMAZING MONOLOGUES AND GET INTO DRAMA SCHOOL) (33.95%)",Peoples Services Directorate,LAC - Education,F269,
http://opendatacommunities.org/id/london-borough-council/sutton,London Borough of Sutton,22/12/2019,1288531,6.73 , AMAZON.CO.UK 7G99K6WM5,SPLIT - NEW FUNCTIONAL SKILLS MATHS LEVEL 2 - STUDY & TEST PRACTICE (FOR 2019 & BEYOND) (CGP FUNCTIONAL SKILLS) (31.77%),Peoples Services Directorate,LAC - Education,F269,
http://opendatacommunities.org/id/london-borough-council/sutton,London Borough of Sutton,20/12/2019,1288531,16.99 , AMZNMKTPLACE,SPLIT - BEAST QUEST SERIES 1 & 2 COLLETCION 12 BOOKS PACK GIFT SET (100%),Peoples Services Directorate,LAC - Education,F269,
http://opendatacommunities.org/id/london-borough-council/sutton,London Borough of Sutton,13/12/2019,1288531,7.23 , AMAZON.CO.UK IZ3J004W5,SPLIT - NEW FUNCTIONAL SKILLS MATHS: EDEXCEL ENTRY LEVEL 3 - STUDY & TEST PRACTICE (FOR 2019 & BEYOND) (CGP FUNCTIONAL SKILLS) (23.93%),Peoples Services Directorate,LAC - Education,F269,
http://opendatacommunities.org/id/london-borough-council/sutton,London Borough of Sutton,13/12/2019,1288531,17.99 , AMAZON.CO.UK IZ3J004W5,SPLIT - ENGLISH-ARABIC & ARABIC-ENGLISH WORD-TO-WORD DICTIONARY (59.55%),Peoples Services Directorate,LAC - Education,F269,
http://opendatacommunities.org/id/london-borough-council/sutton,London Borough of Sutton,13/12/2019,1288531,4.99 , AMAZON.CO.UK IZ3J004W5,SPLIT - HANDWRITING TODAY: BK. 2 (HANDWRITING TODAY) (16.52%),Peoples Services Directorate,LAC - Education,F269,
http://opendatacommunities.org/id/london-borough-council/sutton,London Borough of Sutton,11/12/2019,1288531,16.99 , AMAZON.CO.UK 8D6L92JL5,SPLIT - ENGLISH-VIETNAMESE & VIETNAMESE-ENGLISH WORD-TO-WORD DICTIONARY (53.97%),Peoples Services Directorate,LAC - Education,F269,
http://opendatacommunities.org/id/london-borough-council/sutton,London Borough of Sutton,11/12/2019,1288531,7.26 , AMAZON.CO.UK 8D6L92JL5,SPLIT - NEW FUNCTIONAL SKILLS ENGLISH: EDEXCEL ENTRY LEVEL 3 - STUDY & TEST PRACTICE (FOR 2019 & BEYOND) (CGP FUNCTIONAL SKILLS) (23.06%),Peoples Services Directorate,LAC - Education,F269,
http://opendatacommunities.org/id/london-borough-council/sutton,London Borough of Sutton,11/12/2019,1288531,7.23 , AMAZON.CO.UK 8D6L92JL5,SPLIT - NEW FUNCTIONAL SKILLS MATHS: EDEXCEL ENTRY LEVEL 3 - STUDY & TEST PRACTICE (FOR 2019 & BEYOND) (CGP FUNCTIONAL SKILLS) (22.97%),Peoples Services Directorate,LAC - Education,F269,
http://opendatacommunities.org/id/london-borough-council/sutton,London Borough of Sutton,11/12/2019,1288531,4.68 , AMZNMKTPLACE,SPLIT - HIGH FREQUENCY WORDS FLASHCARDS (COLLINS EASY LEARNING KS1) (28.21%),Peoples Services Directorate,LAC - Education,F269,
http://opendatacommunities.org/id/london-borough-council/sutton,London Borough of Sutton,11/12/2019,1288531,8.80 , AMZNMKTPLACE,"SPLIT - FANCII FULL PAGE 2X READING MAGNIFYING GLASS WITH 12 LED LIGHTS, HANDHELD OR HANDS FREE MAGNIFIER WITH STAND & LANYARD - LARGE A4 SHEET ILLUMINATED VISION AID FOR BOOKS, NEWSPAPERS, USB OR BATTERY (53.01%)",Peoples Services Directorate,LAC - Education,F269,
http://opendatacommunities.org/id/london-borough-council/sutton,London Borough of Sutton,22/12/2019,1288531,7.26 , AMAZON.CO.UK 7G99K6WM5,SPLIT - NEW FUNCTIONAL SKILLS ENGLISH: CITY & GUILDS LEVEL 1 - STUDY & TEST PRACTICE (FOR 2019 & BEYOND) (CGP FUNCTIONAL SKILLS) (34.28%),Peoples Services Directorate,LAC - Education,F269,
http://opendatacommunities.org/id/london-borough-council/sutton,London Borough of Sutton,11/12/2019,1288531,3.12 , AMZNMKTPLACE,BALANCING ENTRY AMOUNT (18.78%),Peoples Services Directorate,LAC - Education,F269,
http://opendatacommunities.org/id/london-borough-council/sutton,London Borough of Sutton,10/12/2019,1288531,(7.26), AMZ AMAZON.CO.UK,SPLIT - NEW FUNCTIONAL SKILLS ENGLISH: EDEXCEL ENTRY LEVEL 3 - STUDY & TEST PRACTICE (FOR 2019 & BEYOND) (CGP FUNCTIONAL SKILLS) (50%),Peoples Services Directorate,LAC - Education,F269,
http://opendatacommunities.org/id/london-borough-council/sutton,London Borough of Sutton,10/12/2019,1288531,(7.26), AMZ AMAZON.CO.UK,SPLIT - NEW FUNCTIONAL SKILLS MATHS: EDEXCEL ENTRY LEVEL 3 - STUDY & TEST PRACTICE (FOR 2019 & BEYOND) (CGP FUNCTIONAL SKILLS) (50%),Peoples Services Directorate,LAC - Education,F269,
http://opendatacommunities.org/id/london-borough-council/sutton,London Borough of Sutton,05/12/2019,1288531,13.58 , AMAZON.CO.UK YY1Y11WC5,SPLIT - THE HUNGER GAMES TRILOGY (100%),Peoples Services Directorate,LAC - Education,F269,
http://opendatacommunities.org/id/london-borough-council/sutton,London Borough of Sutton,04/12/2019,1288531,31.67 , WWW.REED.CO.UK,ONLINE BUSINESS STUDIES COURSE FOR A STUDENT NOT ACCESSING EDUCATION CURRENTLY DUE TO CIRCUMSTANCE,Peoples Services Directorate,LAC - Education,F269,
http://opendatacommunities.org/id/london-borough-council/sutton,London Borough of Sutton,02/12/2019,1288531,16.99 , AMAZON.CO.UK D20K48SR5,SPLIT - ENGLISH-VIETNAMESE & VIETNAMESE-ENGLISH WORD-TO-WORD DICTIONARY (100%),Peoples Services Directorate,LAC - Education,F269,
http://opendatacommunities.org/id/london-borough-council/sutton,London Borough of Sutton,27/11/2019,1288531,7.26 , AMAZON.CO.UK MP0XB36F5,SPLIT - NEW FUNCTIONAL SKILLS MATHS: EDEXCEL ENTRY LEVEL 3 - STUDY & TEST PRACTICE (FOR 2019 & BEYOND) (CGP FUNCTIONAL SKILLS) (70.83%),Peoples Services Directorate,LAC - Education,F269,
http://opendatacommunities.org/id/london-borough-council/sutton,London Borough of Sutton,27/11/2019,1288531,2.99 , AMAZON.CO.UK MP0XB36F5,BALANCING ENTRY AMOUNT (29.17%),Peoples Services Directorate,LAC - Education,F269,
http://opendatacommunities.org/id/london-borough-council/sutton,London Borough of Sutton,18/12/2019,1288531,20.00 , OYSTER AUTO-TOP UP,OYSTERCARD TOP UP,"Environment, Housing & Regeneration Directorate",General Office Expenses,F235,
http://opendatacommunities.org/id/london-borough-council/sutton,London Borough of Sutton,27/11/2019,1288531,20.00 , OYSTER AUTO-TOP UP,OYSTERCARD TOP UP,"Environment, Housing & Regeneration Directorate",General Office Expenses,F235,
http://opendatacommunities.org/id/london-borough-council/sutton,London Borough of Sutton,19/12/2019,1288531,179.00 , CHARTERED MANAGEME,CMI MEMBERSHIP (MD),"Environment, Housing & Regeneration Directorate",Subscriptions - General,F450,
http://opendatacommunities.org/id/london-borough-council/sutton,London Borough of Sutton,03/12/2019,1288531,8.32 , SPOTIFY P0DB69304A,SPOTIFY DOWNLOAD,Resources Directorate,Subscriptions - General,F450,
http://opendatacommunities.org/id/london-borough-council/sutton,London Borough of Sutton,18/12/2019,1288531,27.00 , EVERGREEN EXTERIOR SER,EXTERIOR,Resources Directorate,Miscellaneous Expenses,F620,
http://opendatacommunities.org/id/london-borough-council/sutton,London Borough of Sutton,17/12/2019,1288531,11.00 , WM MORRISONS STORE,MILK AND ORANGE JUICE FOR CITIZENSHIP,Resources Directorate,Miscellaneous Expenses,F620,
http://opendatacommunities.org/id/london-borough-council/sutton,London Borough of Sutton,29/11/2019,1288531,3.32 , B & Q 1191,COMPOST FOR GARDEN,Resources Directorate,Miscellaneous Expenses,F620,
http://opendatacommunities.org/id/london-borough-council/sutton,London Borough of Sutton,04/12/2019,1288531,21.42 , TESCO STORE 3235,"CONFERENCE ROOM HIRE, COFFEE, SUGAR AND BISCUITS",Chief Executive's Directorate,Hospitality (VAT not Recoverable),F325,
http://opendatacommunities.org/id/london-borough-council/sutton,London Borough of Sutton,18/12/2019,1288531,20.00 , OYSTER AUTO-TOP UP,OYSTERCARD TOP UP,"Environment, Housing & Regeneration Directorate",General Office Expenses,F235,
http://opendatacommunities.org/id/london-borough-council/sutton,London Borough of Sutton,02/12/2019,1288531,60.00 , TFL AUTOSETTLEMENT,OYSTERCARD TOP UP,"Environment, Housing & Regeneration Directorate",General Office Expenses,F235,
http://opendatacommunities.org/id/london-borough-council/sutton,London Borough of Sutton,06/12/2019,1288531,20.00 , OYSTER AUTO-TOP UP,OYSTERCARD TOP UP,HRA,General Office Expenses,F235,
http://opendatacommunities.org/id/london-borough-council/sutton,London Borough of Sutton,29/11/2019,1288531,20.00 , OYSTER AUTO-TOP UP,OYSTERCARD TOP UP,HRA,General Office Expenses,F235,
http://opendatacommunities.org/id/london-borough-council/sutton,London Borough of Sutton,27/11/2019,1288531,20.00 , OYSTER AUTO-TOP UP,OYSTERCARD TOP UP,HRA,General Office Expenses,F235,
http://opendatacommunities.org/id/london-borough-council/sutton,London Borough of Sutton,11/12/2019,1288531,20.00 , OYSTER AUTO-TOP UP,OYSTERCARD TOP UP,"Environment, Housing & Regeneration Directorate",General Office Expenses,F235,
http://opendatacommunities.org/id/london-borough-council/sutton,London Borough of Sutton,11/12/2019,1288531,20.00 , OYSTER AUTO-TOP UP,OYSTERCARD TOP UP,"Environment, Housing & Regeneration Directorate",General Office Expenses,F235,
http://opendatacommunities.org/id/london-borough-council/sutton,London Borough of Sutton,19/12/2019,1288531,40.00 , TESCO STORES 5374,ELECTRICITY PSL,"Environment, Housing & Regeneration Directorate",Domestic Supplies,D801,
http://opendatacommunities.org/id/london-borough-council/sutton,London Borough of Sutton,26/11/2019,1288531,131.60 , VIRGIN TRAINS,TRAIN TICKETS TO ATTEND NORTHAMPTONSHIRE BOARD MEETING ON 03.12.19,Chief Executive's Directorate,Travelling and Subsistence Allowances,A530,
http://opendatacommunities.org/id/london-borough-council/sutton,London Borough of Sutton,28/11/2019,1288531,136.29 , THETRAINLINE.COM,TRAIN TICKET,Chief Executive's Directorate,Travelling and Subsistence Allowances,A530,
http://opendatacommunities.org/id/london-borough-council/sutton,London Borough of Sutton,26/11/2019,1288531,28.74 , TRAINLINE,TRAIN TICKETS,Chief Executive's Directorate,Travelling and Subsistence Allowances,A530,
http://opendatacommunities.org/id/london-borough-council/sutton,London Borough of Sutton,30/11/2019,1288531,20.00 , OYSTER AUTO-TOP UP,TEAM OYSTER,Chief Executive's Directorate,Travelling and Subsistence Allowances,A530,
http://opendatacommunities.org/id/london-borough-council/sutton,London Borough of Sutton,19/12/2019,1288531,20.00 , OYSTER BUS AUTOLOAD,TEAM OYSTER CARD,Chief Executive's Directorate,Travelling and Subsistence Allowances,A530,
http://opendatacommunities.org/id/london-borough-council/sutton,London Borough of Sutton,07/12/2019,1288531,20.00 , OYSTER BUS AUTOLOAD,TEAM OYSTER CARD,Chief Executive's Directorate,Travelling and Subsistence Allowances,A530,
http://opendatacommunities.org/id/london-borough-council/sutton,London Borough of Sutton,05/12/2019,1288531,189.00 , B&Q DIRECT,OFFICE SUPPLIES,Chief Executive's Directorate,Equipment including Meters,D520,
http://opendatacommunities.org/id/london-borough-council/sutton,London Borough of Sutton,06/12/2019,1288531,5.33 , WM MORRISONS STORE,TEAM REFRESHMENTS,Chief Executive's Directorate,Refreshments,F155,
http://opendatacommunities.org/id/london-borough-council/sutton,London Borough of Sutton,06/12/2019,1288531,5.00 , POUNDLAND LTD 1211,TEAM REFRESHMENTS,Chief Executive's Directorate,Refreshments,F155,
http://opendatacommunities.org/id/london-borough-council/sutton,London Borough of Sutton,28/11/2019,1288531,131.09 , ACTION ON HEARING LOSS,HEARING LOOP FOR RECEPTION,Chief Executive's Directorate,Purchase of Software,F381,
http://opendatacommunities.org/id/london-borough-council/sutton,London Borough of Sutton,16/12/2019,1288531,4.78 , MAILCHIMP    MONTHLY,WEB HOSTING,Chief Executive's Directorate,Fees - Computer Software,F384,
http://opendatacommunities.org/id/london-borough-council/sutton,London Borough of Sutton,14/12/2019,1288531,173.92 , MAILCHIMP    MONTHLY,WEB HOSTING,Chief Executive's Directorate,Fees - Computer Software,F384,
http://opendatacommunities.org/id/london-borough-council/sutton,London Borough of Sutton,04/12/2019,1288531,268.00 , HILTON,LAPF ACCOMMODATION FOR COUNCILLOR,Resources Directorate,Travelling and Subsistence Allowances,A530,
http://opendatacommunities.org/id/london-borough-council/sutton,London Borough of Sutton,29/11/2019,1288531,20.00 , OYSTER BUS AUTOLOAD,20 A530 4114 9999 - OYSTER,Resources Directorate,Travelling and Subsistence Allowances,A530,
http://opendatacommunities.org/id/london-borough-council/sutton,London Borough of Sutton,10/12/2019,1288531,34.50 , WM MORRISONS STORE,LOOKED AFTER CHILDREN,Resources Directorate,General Office Expenses,F235,
http://opendatacommunities.org/id/london-borough-council/sutton,London Borough of Sutton,02/12/2019,1288531,"2,000.00 ", WM MORRISONS HO CREDIT,2000 - F620 4114 9999 - MORRISON VOUCHERS,Resources Directorate,Miscellaneous Expenses,F620,
http://opendatacommunities.org/id/london-borough-council/sutton,London Borough of Sutton,26/11/2019,1288531,160.26 , THETRAINLINE.COM,DAVID KELLOND TRAIN TRAVEL TO TRAINING COURSE IN LEEDS,Resources Directorate,Travelling and Subsistence Allowances,A530,
http://opendatacommunities.org/id/london-borough-council/sutton,London Borough of Sutton,13/12/2019,1288531,"2,900.00 ", WWW.ICO.ORG.UK,DATA PROTECTION FEE - REMINDER TO RENEW ICO:00012694113,Resources Directorate,Subscriptions - General,F450,
http://opendatacommunities.org/id/london-borough-council/sutton,London Borough of Sutton,23/12/2019,1288531,156.70 , FACEBK 5X99ZPW9L2,FACEBOOK DA CAMPAIGN,Chief Executive's Directorate,Corporate Publicity,F356,
http://opendatacommunities.org/id/london-borough-council/sutton,London Borough of Sutton,20/12/2019,1288531,350.00 , GOOGLE  ADS8517410550,GOOGLE ADS - DA CAMPAIGN,Chief Executive's Directorate,Corporate Publicity,F356,
http://opendatacommunities.org/id/london-borough-council/sutton,London Borough of Sutton,13/12/2019,1288531,200.00 , FACEBK 9S6FTPW9L2,FACEBOOK ADS - DA CAMPAIGN,Chief Executive's Directorate,Corporate Publicity,F356,
http://opendatacommunities.org/id/london-borough-council/sutton,London Borough of Sutton,18/12/2019,1288531,20.00 , OYSTER AUTO-TOP UP,OYSTER CARD AUTO TOP UP FOR CLLR.,Resources Directorate,Members Expenses - Travel and Subsistence,F401,
http://opendatacommunities.org/id/london-borough-council/sutton,London Borough of Sutton,13/12/2019,1288531,(7.92), PREMIER INN,ACCOMMODATION RE ELECTION,Chief Executive's Directorate,Hotel Accomodation,A512,
http://opendatacommunities.org/id/london-borough-council/sutton,London Borough of Sutton,13/12/2019,1288531,(7.92), PREMIER INN,ACCOMMODATION RE ELECTION,Chief Executive's Directorate,Hotel Accomodation,A512,
http://opendatacommunities.org/id/london-borough-council/sutton,London Borough of Sutton,09/12/2019,1288531,130.83 , PREMIER INN,ACCOMMODATION RE ELECTION,Chief Executive's Directorate,Hotel Accomodation,A512,
http://opendatacommunities.org/id/london-borough-council/sutton,London Borough of Sutton,19/12/2019,1288531,7.99 , ARGOS LTD,LUNCH FOR STAFF MAAETING,Chief Executive's Directorate,General Office Expenses,F235,
http://opendatacommunities.org/id/london-borough-council/sutton,London Borough of Sutton,18/12/2019,1288531,11.99 , HOO HOOTSUITE INC,SOCIAL MEDIA MANAGEMENT,Chief Executive's Directorate,Corporate Publicity,F356,
http://opendatacommunities.org/id/london-borough-council/sutton,London Borough of Sutton,03/12/2019,1288531,221.88 , EVERYTHING CORP,BRANDED MUGS FOR OFFICE USE,Chief Executive's Directorate,Corporate Publicity,F356,
http://opendatacommunities.org/id/london-borough-council/sutton,London Borough of Sutton,12/12/2019,1288531,131.60 , ASDA GROCERIES ONLINE,STAFF CHRISTMAS REFRESHMENTS WITH LEADER AND CHIEF EXECUTIVE,Chief Executive's Directorate,Corporate Publicity,F356,
http://opendatacommunities.org/id/london-borough-council/sutton,London Borough of Sutton,10/12/2019,1288531,54.40 , COUGHLANS BAKERY SUTTO,CHRISTMAS REFRESHMENTS FOR STAFF WALKABOUT FROM CHIEF EXECUTIVE AND LEADER,Chief Executive's Directorate,Corporate Publicity,F356,
http://opendatacommunities.org/id/london-borough-council/sutton,London Borough of Sutton,02/12/2019,1288531,33.32 , AMAZON.CO.UK S65GE8GS5,WACOM TABLET FOR SUTTON PLAN EVENT,Chief Executive's Directorate,Purchase of IT Equipment,F380,
http://opendatacommunities.org/id/london-borough-council/sutton,London Borough of Sutton,19/12/2019,1288531,41.10 , WM MORRISONS STORE,MEMORY CARD FOR DEPARTMENT CAMERA,Chief Executive's Directorate,Purchase of IT Equipment,F380,
http://opendatacommunities.org/id/london-borough-council/sutton,London Borough of Sutton,28/11/2019,1288531,30.00 , WAVES CAR WASH,EP VEHICLE CLEANING,"Environment, Housing & Regeneration Directorate",General Office Expenses,F235,
http://opendatacommunities.org/id/london-borough-council/sutton,London Borough of Sutton,03/12/2019,1288531,388.04 , AMZNMKTPLACE AMAZON.CO,H&S EQUIPMENT FOR OFFICE,"Environment, Housing & Regeneration Directorate",Health and Safety Equipment,F005,
http://opendatacommunities.org/id/london-borough-council/sutton,London Borough of Sutton,18/12/2019,1288531,112.95 , WWW.ARGOS.CO.UK,CLG PURCHASE - DOUBLE MATTRESS - WALSH,Resources Directorate,Grants,F473,
http://opendatacommunities.org/id/london-borough-council/sutton,London Borough of Sutton,06/12/2019,1288531,16.67 , OYSTER ONLINE,OYSTER TOP UP FOR BENEFITS STAFF TRAVEL,Resources Directorate,Grants,F473,
http://opendatacommunities.org/id/london-borough-council/sutton,London Borough of Sutton,05/12/2019,1288531,"4,750.00 ", WM MORRISONS HO CREDIT,PURCHASE OF FOOD VOUCHERS FOR CRISIS LOAN AND GRANT SCHEME,Resources Directorate,Grants,F473,
http://opendatacommunities.org/id/london-borough-council/sutton,London Borough of Sutton,05/12/2019,1288531,"4,750.00 ", WM MORRISONS HO CREDIT,PURCHASE OF FOOD VOUCHERS FOR CRISIS LOAN AND GRANT SCHEME,Resources Directorate,Grants,F473,
http://opendatacommunities.org/id/london-borough-council/sutton,London Borough of Sutton,06/12/2019,1288531,16.67 , OYSTER ONLINE,OYSTER TOP UP FOR REVENUES STAFF TRAVEL,Resources Directorate,Travelling and Subsistence Allowances,A530,
http://opendatacommunities.org/id/london-borough-council/sutton,London Borough of Sutton,04/12/2019,1288531,9.00 , WWW.GOV.UK,PROBATE CERTIFICATES X 6,Resources Directorate,General Office Expenses,F235,
http://opendatacommunities.org/id/london-borough-council/sutton,London Borough of Sutton,26/11/2019,1288531,16.50 , WWW.GOV.UK,11 PROBATE CERTIFICATES,Resources Directorate,General Office Expenses,F235,
http://opendatacommunities.org/id/london-borough-council/sutton,London Borough of Sutton,06/12/2019,1288531,16.67 , OYSTER ONLINE,OYSTER TOP UP FOR REVENUES STAFF TRAVEL,Resources Directorate,Grants,F473,
http://opendatacommunities.org/id/london-borough-council/sutton,London Borough of Sutton,06/12/2019,1288531,16.67 , OYSTER ONLINE,OYSTER TOP UP FOR REVENUES STAFF TRAVEL,Resources Directorate,Grants,F473,
http://opendatacommunities.org/id/london-borough-council/sutton,London Borough of Sutton,13/12/2019,1288531,(16.67), OYSTER ONLINE,OYSTER TOP UP FOR REVENUES STAFF TRAVEL,Resources Directorate,Grants,F473,
http://opendatacommunities.org/id/london-borough-council/sutton,London Borough of Sutton,11/12/2019,1288531,16.67 , OYSTER AUTO-TOP UP,OYSTER TOP UP FOR BENEFITS STAFF TRAVEL,Resources Directorate,Grants,F473,
http://opendatacommunities.org/id/london-borough-council/sutton,London Borough of Sutton,06/12/2019,1288531,324.98 , WWW.ARGOS.CO.UK,ARGOS PURCHASE,Resources Directorate,Grants,F473,
http://opendatacommunities.org/id/london-borough-council/sutton,London Borough of Sutton,13/12/2019,1288531,(16.67), OYSTER ONLINE,OYSTER TOP UP FOR BENEFITS STAFF TRAVEL,Resources Directorate,Grants,F473,
http://opendatacommunities.org/id/london-borough-council/sutton,London Borough of Sutton,08/12/2019,1288531,16.67 , OYSTER AUTO-TOP UP,OYSTER TOP UP FOR BENEFITS STAFF TRAVEL,Resources Directorate,Grants,F473,
http://opendatacommunities.org/id/london-borough-council/sutton,London Borough of Sutton,06/12/2019,1288531,16.67 , OYSTER ONLINE,OYSTER TOP UP FOR BENEFITS STAFF TRAVEL,Resources Directorate,Grants,F473,
http://opendatacommunities.org/id/london-borough-council/sutton,London Borough of Sutton,05/12/2019,1288531,558.00 , RICS COM GBP CYBS,SUBSCRIPTION TO VALUER REGISTRATION SCHEME,Resources Directorate,Subscriptions - General,F450,
http://opendatacommunities.org/id/london-borough-council/sutton,London Borough of Sutton,23/12/2019,1288531,173.40 , WWW.SHAWS.CO.UK,DOCUMENTATION,Peoples Services Directorate,Personal Requisites,F106,
http://opendatacommunities.org/id/london-borough-council/sutton,London Borough of Sutton,20/12/2019,1288531,11.00 , SURREY CC CARD PAY,11.00 - F106 6404 9999 - SURREY COUNTY COUNCIL BIRTH CERTIFICATE .,Peoples Services Directorate,Personal Requisites,F106,
http://opendatacommunities.org/id/london-borough-council/sutton,London Borough of Sutton,14/12/2019,1288531,20.00 , OYSTER BUS AUTOLOAD,20.00 - A530 6423 9999 - OYSTER TOP UP,Peoples Services Directorate,Travelling and Subsistence Allowances,A530,
http://opendatacommunities.org/id/london-borough-council/sutton,London Borough of Sutton,08/12/2019,1288531,20.00 , OYSTER AUTO-TOP UP,20.00 - A530 6423 9999 - OYSTER TOP UP,Peoples Services Directorate,Travelling and Subsistence Allowances,A530,
http://opendatacommunities.org/id/london-borough-council/sutton,London Borough of Sutton,08/12/2019,1288531,16.67 , OYSTER BUS AUTOLOAD,TRAVEL,Peoples Services Directorate,Travelling and Subsistence Allowances,A530,
http://opendatacommunities.org/id/london-borough-council/sutton,London Borough of Sutton,10/12/2019,1288531,264.38 , WWW.ETCVENUES.CO.UK,AWAY DAY,Peoples Services Directorate,Conferences - Fees,A525,
http://opendatacommunities.org/id/london-borough-council/sutton,London Borough of Sutton,01/12/2019,1288531,40.00 , OYSTER AUTO-TOP UP,OYSTER TOP UP,Peoples Services Directorate,Travelling and Subsistence Allowances,A530,
